fUSD/lending_fUSD_20260111
["ID","MTS","AMOUNT","RATE_DAILY","PERIOD"]
[401288339,1768108244949,-500.0,0.00018324,2]
[401288340,1768108244958,-813.18,0.0001833,2]
[401288341,1768108244968,-6272.62,0.00018356,2]
[401288342,1768108244978,-264.872001,0.00018357,2]
[401288343,1768108244988,-154.962584,0.00018357,2]
[401288344,1768108244998,-151.0,0.00018357,2]
[401288345,1768108245007,-151.0,0.00018357,2]
[401288346,1768108245017,-261.544396,0.00018357,2]
[401288347,1768108245027,-183.798346,0.00018357,2]
[401288348,1768108245040,-151.0,0.00018357,2]
[401288349,1768108245050,-151.0,0.00018357,2]
[401288350,1768108245060,-156.139247,0.00018357,2]
[401288351,1768108245070,-150.7257645,0.00018357,2]
[401288352,1768108245080,-152.77599441,0.00018357,2]
[401288353,1768108245090,-160.26664167,0.00018357,2]
[401288354,1768108245099,-150.0,0.00018357,2]
[401288355,1768108245109,-151.0,0.00018357,2]
[401288356,1768108245119,-151.0,0.00018357,2]
[401288357,1768108245129,-223.082902,0.00018357,2]
[401288358,1768108245140,-152.139917,0.00018357,2]
[401288359,1768108245149,-150.75061094,0.00018357,2]
[401288360,1768108245159,-155.22124364,0.00018357,2]
[401288361,1768108245169,-150.0,0.00018357,2]
[401288362,1768108245179,-196.41443979,0.00018357,2]
[401288363,1768108245190,-151.0,0.00018357,2]
[401288364,1768108245200,-151.0,0.00018357,2]
[401288365,1768108245209,-157.627448,0.00018357,2]
[401288366,1768108245219,-151.0,0.00018357,2]
[401288367,1768108245228,-151.0,0.00018357,2]
[401288368,1768108245238,-151.0,0.00018357,2]
[401288369,1768108245248,-151.0,0.00018357,2]
[401288370,1768108245258,-151.0,0.00018357,2]
[401288371,1768108245268,-151.0,0.00018357,2]
[401288372,1768108245277,-151.0,0.00018357,2]
[401288373,1768108245287,-151.0,0.00018357,2]
[401288374,1768108245296,-151.630089,0.00018357,2]
[401288375,1768108245306,-151.0,0.00018357,2]
[401288376,1768108245315,-151.0,0.00018357,2]
[401288377,1768108245325,-151.0,0.00018357,2]
[401288378,1768108245336,-151.0,0.00018357,2]
[401288379,1768108245346,-151.0,0.00018357,2]
[401288380,1768108245355,-151.0,0.00018357,2]
[401288381,1768108245364,-151.0,0.00018357,2]
[401288382,1768108245374,-151.0,0.00018357,2]
[401288383,1768108245385,-151.0,0.00018357,2]
[401288384,1768108245394,-160.253841,0.00018357,2]
[401288385,1768108245409,-151.0,0.00018357,2]
[401288386,1768108245419,-160.253841,0.00018357,2]
[401288387,1768108245430,-160.253841,0.00018357,2]
[401288388,1768108245440,-151.0,0.00018357,2]
[401288389,1768108245452,-151.0,0.00018357,2]
[401288390,1768108245463,-160.253841,0.00018357,2]
[401288391,1768108245474,-151.0,0.00018357,2]
[401288392,1768108245485,-151.0,0.00018357,2]
[401288393,1768108245495,-151.0,0.00018357,2]
[401288394,1768108245506,-151.0,0.00018357,2]
[401288395,1768108245517,-206.637307,0.00018357,2]
[401288396,1768108245529,-206.637307,0.00018357,2]
[401288397,1768108245540,-206.637307,0.00018357,2]
[401288398,1768108245550,-206.637307,0.00018357,2]
[401288399,1768108245560,-151.0,0.00018357,2]
[401288400,1768108245570,-153.191082,0.00018357,2]
[401288401,1768108245580,-153.191082,0.00018357,2]
[401288402,1768108245591,-153.191082,0.00018357,2]
[401288403,1768108245601,-153.191082,0.00018357,2]
[401288404,1768108245612,-242.540878,0.00018357,2]
[401288405,1768108245623,-151.0,0.00018357,2]
[401288416,1768108245950,-151.0,0.00018357,2]
[401288417,1768108245961,-151.0,0.00018357,2]
[401288418,1768108245970,-242.540878,0.00018357,2]
[401288419,1768108245979,-151.0,0.00018357,2]
[401288420,1768108245988,-242.540878,0.00018357,2]
[401288421,1768108245998,-151.0,0.00018357,2]
[401288422,1768108246007,-242.540878,0.00018357,2]
[401288423,1768108246016,-232.98971,0.00018357,2]
[401288424,1768108246026,-150.0,0.00018357,2]
[401288425,1768108246035,-232.98971,0.00018357,2]
[401288426,1768108246045,-150.0,0.00018357,2]
[401288427,1768108246057,-150.0,0.00018357,2]
[401288428,1768108246066,-232.98971,0.00018357,2]
[401288429,1768108246075,-221.75382643,0.00018357,2]
[401288430,1768108246085,-232.98971,0.00018357,2]
[401288431,1768108246094,-151.0,0.00018357,2]
[401288432,1768108246103,-151.0,0.00018357,2]
[401288433,1768108246113,-151.0,0.00018357,2]
[401288434,1768108246122,-151.0,0.00018357,2]
[401288435,1768108246131,-151.0,0.00018357,2]
[401288436,1768108246141,-151.0,0.00018357,2]
[401288437,1768108246151,-150.0,0.00018357,2]
[401288438,1768108246161,-150.0,0.00018357,2]
[401288439,1768108246170,-150.0,0.00018357,2]
[401288440,1768108246180,-695.0,0.00018357,2]
[401288441,1768108246189,-500.0,0.00018357,2]
[401288442,1768108246199,-159.58939887,0.00018357,2]
[401288443,1768108246208,-150.0,0.00018357,2]
[401288444,1768108246218,-1300.0,0.00018408,2]
[401288445,1768108246227,-150.0,0.00018412,2]
[401288446,1768108246236,-150.0,0.00018412,2]
[401288447,1768108246246,-163.53572883,0.00018412,2]
[401288448,1768108246256,-150.0,0.00018412,2]
[401288449,1768108246265,-222.23892791,0.00018412,2]
[401288450,1768108246275,-150.0,0.00018412,2]
[401288451,1768108246284,-695.0,0.00018412,2]
[401288452,1768108246293,-500.0,0.00018412,2]
[401288454,1768108246302,-150.0,0.00018412,2]
[401288456,1768108246312,-1300.0,0.00018452,2]
[401288458,1768108246321,-200.0,0.00018467,2]
[401288459,1768108246330,-264.8095173,0.00018467,2]
[401288460,1768108246340,-150.0,0.00018467,2]
[401288461,1768108246350,-150.0,0.00018467,2]
[401288462,1768108246359,-695.0,0.00018467,2]
[401288463,1768108246369,-339.41796982,0.00018467,2]
[401288464,1768108246378,-150.0,0.00018467,2]
[401288465,1768108246387,-500.0,0.00018498,2]
[401288466,1768108246397,-500.0,0.00018521,2]
[401288468,1768108246407,-1000.0,0.00018521,2]
[401288470,1768108246416,-1000.0,0.00018521,2]
[401288472,1768108246432,-516.18633011,0.00018521,2]
[401288475,1768108246448,-1000.0,0.00018521,2]
[401288477,1768108246459,-1000.0,0.00018521,2]
[401288479,1768108246468,-1000.0,0.00018521,2]
[401288481,1768108246478,-245.49911247,0.00018521,2]
[401288483,1768108246488,-196.52587097,0.00018521,2]
[401288486,1768108246497,-695.0,0.00018521,2]
[401288488,1768108246507,-150.0,0.00018521,2]
[401288490,1768108246517,-695.0,0.00018576,2]
[401288492,1768108246527,-150.0,0.00018576,2]
[401288494,1768108246536,-918.33,0.00018585,2]
[401288496,1768108246546,-1000.0,0.000186,2]
[401288499,1768108246556,-695.0,0.00018631,2]
[401288501,1768108246565,-224.73470422,0.00018631,2]
[401288503,1768108246574,-1500.0,0.00018668,2]
[401288505,1768108246584,-695.0,0.00018686,2]
[401288507,1768108246593,-4653.52472305,0.00018701,2]
[401288509,1768108246603,-1300.0,0.0001871,2]
[401288511,1768108246613,-976.09266988,0.00018716,2]
[401288513,1768108246622,-363.07,0.00018721,2]
[401288515,1768108246632,-4781.85268159,0.00018722,2]
[401288517,1768108246641,-1170.8,0.00018725,2]
[401288519,1768108246651,-166.66,0.00018732,2]
[401288521,1768108246661,-695.0,0.00018741,2]
[401288523,1768108246671,-695.0,0.00018795,2]
[401288525,1768108246680,-151.18,0.000188,2]
[401288527,1768108246690,-151.18,0.000188,2]
[401288529,1768108246700,-151.18,0.000188,2]
[401288531,1768108246710,-151.18,0.000188,2]
[401288533,1768108246721,-151.18,0.000188,2]
[401288534,1768108246731,-151.18,0.000188,2]
[401288535,1768108246741,-151.18,0.000188,2]
[401288536,1768108246750,-695.0,0.0001885,2]
[401288537,1768108246760,-918.37528623,0.00018859,2]
[401288538,1768108246770,-695.0,0.00018905,2]
[401288539,1768108246780,-1000.0,0.00018918,2]
[401288540,1768108246790,-695.0,0.0001896,2]
[401288541,1768108246800,-534.08,0.0001896,2]
[401288542,1768108246810,-519.0,0.00018997,2]
[401288543,1768108246820,-500.0,0.00018999,2]
[401288544,1768108246830,-30661.89386578,0.00019,2]
[401288545,1768108246840,-1005.51575976,0.00019,2]
[401288546,1768108246850,-300.0,0.00019,2]
[401288547,1768108246860,-418.14693045,0.00019,2]
[401288548,1768108246870,-151.0,0.00019,2]
[401288549,1768108246880,-151.0,0.00019,2]
[401288550,1768108246890,-151.0,0.00019,2]
[401288551,1768108246899,-185.671433,0.00019,2]
[401288552,1768108246909,-185.671433,0.00019,2]
[401288553,1768108246920,-185.671433,0.00019,2]
[401288554,1768108246930,-185.671433,0.00019,2]
[401288555,1768108246940,-715.08318,0.00019,2]
[401288556,1768108246949,-715.08318,0.00019,2]
[401288557,1768108246959,-715.08318,0.00019,2]
[401288558,1768108246973,-715.08318,0.00019,2]
[401288559,1768108246983,-151.0,0.00019,2]
[401288560,1768108246993,-151.0,0.00019,2]
[401288561,1768108247003,-250.822807,0.00019,2]
[401288562,1768108247013,-418.543655,0.00019,2]
[401288563,1768108247022,-418.543655,0.00019,2]
[401288564,1768108247032,-445.8129,0.00019,2]
[401288565,1768108247042,-418.543655,0.00019,2]
[401288566,1768108247051,-364.920004,0.00019,2]
[401288567,1768108247061,-445.8129,0.00019,2]
[401288568,1768108247071,-418.543655,0.00019,2]
[401288569,1768108247080,-364.920004,0.00019,2]
[401288570,1768108247090,-445.8129,0.00019,2]
[401288571,1768108247099,-364.920004,0.00019,2]
[401288572,1768108247110,-445.8129,0.00019,2]
[401288573,1768108247120,-364.920004,0.00019,2]
[401288574,1768108247131,-151.0,0.00019,2]
[401288575,1768108247141,-151.0,0.00019,2]
[401288576,1768108247152,-151.0,0.00019,2]
[401288577,1768108247162,-151.0,0.00019,2]
[401288578,1768108247172,-151.0,0.00019,2]
[401288579,1768108247182,-851.699106,0.00019,2]
[401288580,1768108247192,-151.0,0.00019,2]
[401288581,1768108247203,-851.699106,0.00019,2]
[401288582,1768108247213,-851.699106,0.00019,2]
[401288583,1768108247223,-851.699106,0.00019,2]
[401288584,1768108247236,-202.835873,0.00019,2]
[401288585,1768108247246,-202.835873,0.00019,2]
[401288586,1768108247256,-252.136943,0.00019,2]
[401288587,1768108247267,-202.835873,0.00019,2]
[401288588,1768108247277,-252.136943,0.00019,2]
[401288589,1768108247286,-202.835873,0.00019,2]
[401288590,1768108247296,-252.136943,0.00019,2]
[401288591,1768108247305,-252.136943,0.00019,2]
[401288592,1768108247315,-151.0,0.00019,2]
[401288593,1768108247326,-514.027543,0.00019,2]
[401288594,1768108247336,-151.0,0.00019,2]
[401288595,1768108247347,-514.027543,0.00019,2]
[401288596,1768108247357,-514.027543,0.00019,2]
[401288597,1768108247367,-514.027543,0.00019,2]
[401288598,1768108247378,-151.0,0.00019,2]
[401288599,1768108247389,-173.361121,0.00019,2]
[401288600,1768108247402,-173.361121,0.00019,2]
[401288601,1768108247413,-151.0,0.00019,2]
[401288602,1768108247424,-173.361121,0.00019,2]
[401288603,1768108247436,-173.361121,0.00019,2]
[401288604,1768108247446,-151.0,0.00019,2]
[401288605,1768108247456,-151.0,0.00019,2]
[401288606,1768108247467,-190.67231,0.00019,2]
[401288607,1768108247479,-1046.363777,0.00019,2]
[401288608,1768108247489,-1046.363777,0.00019,2]
[401288609,1768108247504,-1046.363777,0.00019,2]
[401288610,1768108247520,-230.143729,0.00019,2]
[401288611,1768108247530,-151.0,0.00019,2]
[401288612,1768108247540,-230.143729,0.00019,2]
[401288613,1768108247551,-1046.363777,0.00019,2]
[401288614,1768108247561,-151.0,0.00019,2]
[401288615,1768108247571,-161.267882,0.00019,2]
[401288616,1768108247581,-230.143729,0.00019,2]
[401288617,1768108247591,-230.143729,0.00019,2]
[401288618,1768108247602,-273.843479,0.00019,2]
[401288619,1768108247613,-273.843479,0.00019,2]
[401288620,1768108247625,-273.843479,0.00019,2]
[401288621,1768108247636,-273.843479,0.00019,2]
[401288622,1768108247646,-151.0,0.00019,2]
[401288623,1768108247656,-695.0,0.00019015,2]
[401288624,1768108247667,-715.04647647,0.00019068,2]
[401288625,1768108247677,-1500.0,0.00019068,2]
[401288626,1768108247687,-1511.02365069,0.00019068,2]
[401288627,1768108247697,-1500.0,0.00019068,2]
[401288628,1768108247707,-1500.0,0.00019068,2]
[401288629,1768108247718,-695.0,0.00019069,2]
[401288630,1768108247730,-695.0,0.00019124,2]
[401288631,1768108247739,-813.18,0.00019164,2]
[401288632,1768108247749,-151.0,0.00019178,2]
[401288633,1768108247759,-151.0,0.00019178,2]
[401288634,1768108247771,-695.0,0.00019179,2]
[401288635,1768108247781,-2351.0,0.00019188,2]
[401288636,1768108247793,-539.8286436,0.00019216,2]
[401288637,1768108247804,-695.0,0.00019234,2]
[401288638,1768108247814,-304.45486054,0.00019254,2]
[401288639,1768108247824,-500.0,0.00019272,2]
[401288640,1768108247834,-695.0,0.00019289,2]
[401288641,1768108247845,-166.66,0.00019312,2]
[401288642,1768108247855,-695.0,0.00019343,2]
[401288643,1768108247865,-695.0,0.00019398,2]
[401288644,1768108247876,-695.0,0.00019453,2]
[401288645,1768108247886,-500.0,0.00019479,2]
[401288646,1768108247896,-157.89406265,0.00019493,2]
[401288647,1768108247907,-1000.0,0.000195,2]
[401288648,1768108247918,-695.0,0.00019508,2]
[401288649,1768108247928,-1300.0,0.00019525,2]
[401288650,1768108247938,-695.0,0.00019562,2]
[401288651,1768108247948,-4653.52472305,0.0001958,2]
[401288652,1768108247958,-4781.85268159,0.00019598,2]
[401288653,1768108247969,-1501.90366954,0.00019616,2]
[401288654,1768108247979,-2000.0,0.00019616,2]
[401288655,1768108247989,-1502.29397546,0.00019616,2]
[401288656,1768108248000,-706.40401753,0.00019617,2]
[401288657,1768108248010,-357.05333065,0.00019671,2]
[401288658,1768108248021,-500.0,0.00019708,2]
[401288659,1768108248031,-401.33231433,0.00019715,2]
[401288660,1768108248041,-166.66,0.00019892,2]
[401288661,1768108248056,-3584.06307369,0.000199,2]
[401288662,1768108248066,-162.22925288,0.000199,2]
[401288663,1768108248077,-162.22925288,0.000199,2]
[401288664,1768108248088,-162.22925288,0.000199,2]
[401288665,1768108248102,-2557.63,0.00019966,2]
[401288666,1768108248113,-813.18,0.00019997,2]
[401288667,1768108248125,-300.0,0.00019999,2]
[401288668,1768108248135,-500.0,0.00019999,2]
[401288669,1768108248145,-500.0,0.00019999,2]
[401288670,1768108248156,-329493.08605332,0.0002,4]
[401288671,1768108248166,-4573.34948833,0.0002,3]
[401288672,1768108248176,-2930.31897196,0.0002,7]
[401288673,1768108248186,-2245.72834333,0.0002,2]
[401288674,1768108248195,-527.95325159,0.0002,7]
[401288675,1768108248207,-666.0,0.0002,2]
[401288676,1768108248218,-2657.169326,0.0002,2]
[401288677,1768108248230,-151.0,0.0002,2]
[401288678,1768108248240,-151.0,0.0002,2]
[401288679,1768108248252,-151.0,0.0002,2]
[401288680,1768108248261,-151.0,0.0002,2]
[401288681,1768108248271,-151.0,0.0002,2]
[401288682,1768108248281,-151.0,0.0002,2]
[401288683,1768108248291,-151.0,0.0002,2]
[401288684,1768108248300,-151.0,0.0002,2]
[401288685,1768108248310,-151.0,0.0002,2]
[401288686,1768108248320,-151.0,0.0002,2]
[401288687,1768108248330,-151.0,0.0002,2]
[401288688,1768108248340,-151.0,0.0002,2]
[401288689,1768108248349,-151.0,0.0002,2]
[401288690,1768108248360,-151.0,0.0002,2]
[401288691,1768108248371,-292.200681,0.0002,2]
[401288692,1768108248381,-202.743866,0.0002,2]
[401288693,1768108248520,-151.0,0.0002,2]
[401288694,1768108248530,-158.774383,0.0002,2]
[401288695,1768108248539,-200.12254243,0.0002,2]
[401288696,1768108248549,-151.0,0.0002,2]
[401288697,1768108248558,-151.0,0.0002,2]
[401288698,1768108248571,-151.0,0.0002,2]
[401288699,1768108248581,-151.0,0.0002,2]
[401288700,1768108248590,-151.0,0.0002,2]
[401288701,1768108248601,-151.0,0.0002,2]
[401288702,1768108248612,-160.253841,0.0002,2]
[401288703,1768108248624,-151.0,0.0002,2]
[401288704,1768108248634,-160.253841,0.0002,2]
[401288705,1768108248645,-160.253841,0.0002,2]
[401288706,1768108248655,-151.0,0.0002,2]
[401288707,1768108248666,-151.0,0.0002,2]
[401288708,1768108248676,-160.253841,0.0002,2]
[401288709,1768108248685,-228.172257,0.0002,2]
[401288710,1768108248695,-151.0,0.0002,2]
[401288711,1768108248706,-151.0,0.0002,2]
[401288712,1768108248719,-151.0,0.0002,2]
[401288713,1768108248732,-206.637307,0.0002,2]
[401288714,1768108248742,-206.637307,0.0002,2]
[401288715,1768108248757,-206.637307,0.0002,2]
[401288716,1768108248767,-206.637307,0.0002,2]
[401288717,1768108248776,-151.0,0.0002,2]
[401288718,1768108248786,-153.191082,0.0002,2]
[401288719,1768108248797,-153.191082,0.0002,2]
[401288720,1768108248806,-153.191082,0.0002,2]
[401288721,1768108248815,-153.191082,0.0002,2]
[401288722,1768108248825,-242.540878,0.0002,2]
[401288723,1768108248835,-151.0,0.0002,2]
[401288724,1768108248844,-151.0,0.0002,2]
[401288725,1768108248855,-151.0,0.0002,2]
[401288726,1768108248865,-242.540878,0.0002,2]
[401288727,1768108248875,-151.0,0.0002,2]
[401288728,1768108248885,-242.540878,0.0002,2]
[401288729,1768108248895,-151.0,0.0002,2]
[401288730,1768108248905,-242.540878,0.0002,2]
[401288731,1768108248915,-232.98971,0.0002,2]
[401288732,1768108248924,-232.98971,0.0002,2]
[401288733,1768108248934,-232.98971,0.0002,2]
[401288734,1768108248948,-232.98971,0.0002,2]
[401288735,1768108248958,-151.0,0.0002,2]
[401288736,1768108248967,-151.0,0.0002,2]
[401288737,1768108248977,-151.0,0.0002,2]
[401288738,1768108248987,-151.0,0.0002,2]
[401288739,1768108248996,-151.0,0.0002,2]
[401288740,1768108249006,-151.0,0.0002,2]
[401288741,1768108249015,-151.0,0.0002,2]
[401288742,1768108249024,-151.0,0.0002,2]
[401288743,1768108249034,-151.0,0.0002,2]
[401288744,1768108249044,-185.671433,0.0002,2]
[401288745,1768108249055,-185.671433,0.0002,2]
[401288746,1768108249065,-185.671433,0.0002,2]
[401288747,1768108249075,-185.671433,0.0002,2]
[401288748,1768108249085,-715.08318,0.0002,2]
[401288749,1768108249095,-715.08318,0.0002,2]
[401288750,1768108249105,-715.08318,0.0002,2]
[401288751,1768108249113,-715.08318,0.0002,2]
[401288752,1768108249122,-151.0,0.0002,2]
[401288753,1768108249131,-270.151039,0.0002,2]
[401288754,1768108249141,-418.543655,0.0002,2]
[401288755,1768108249149,-150.0,0.0002,20]
[401288756,1768108249159,-418.543655,0.0002,2]
[401288757,1768108249169,-445.8129,0.0002,2]
[401288758,1768108249179,-418.543655,0.0002,2]
[401288759,1768108249189,-364.920004,0.0002,2]
[401288760,1768108249198,-445.8129,0.0002,2]
[401288761,1768108249208,-418.543655,0.0002,2]
[401288762,1768108249218,-364.920004,0.0002,2]
[401288763,1768108249229,-445.8129,0.0002,2]
[401288764,1768108249238,-364.920004,0.0002,2]
[401288765,1768108249249,-445.8129,0.0002,2]
[401288766,1768108249260,-364.920004,0.0002,2]
[401288767,1768108249271,-151.0,0.0002,2]
[401288768,1768108249280,-151.0,0.0002,2]
[401288769,1768108249290,-151.0,0.0002,2]
[401288770,1768108249300,-151.0,0.0002,2]
[401288771,1768108249310,-151.0,0.0002,2]
[401288772,1768108249319,-851.699106,0.0002,2]
[401288773,1768108249330,-151.0,0.0002,2]
[401288774,1768108249340,-851.699106,0.0002,2]
[401288775,1768108249350,-851.699106,0.0002,2]
[401288776,1768108249362,-851.699106,0.0002,2]
[401288777,1768108249371,-202.835873,0.0002,2]
[401288778,1768108249381,-202.835873,0.0002,2]
[401288779,1768108249391,-252.136943,0.0002,2]
[401288780,1768108249400,-202.835873,0.0002,2]
[401288781,1768108249410,-252.136943,0.0002,2]
[401288782,1768108249420,-202.835873,0.0002,2]
[401288783,1768108249429,-252.136943,0.0002,2]
[401288784,1768108249438,-252.136943,0.0002,2]
[401288785,1768108249448,-151.0,0.0002,2]
[401288786,1768108249457,-514.027543,0.0002,2]
[401288787,1768108249467,-151.0,0.0002,2]
[401288788,1768108249481,-514.027543,0.0002,2]
[401288789,1768108249491,-514.027543,0.0002,2]
[401288790,1768108249502,-514.027543,0.0002,2]
[401288791,1768108249513,-160.085494,0.0002,2]
[401288792,1768108249524,-173.361121,0.0002,2]
[401288793,1768108249535,-173.361121,0.0002,2]
[401288794,1768108249547,-150.0,0.0002,2]
[401288795,1768108249558,-150.0,0.0002,2]
[401288796,1768108249567,-195.25741208,0.0002,2]
[401288797,1768108249577,-173.361121,0.0002,2]
[401288798,1768108249586,-173.361121,0.0002,2]
[401288799,1768108249596,-151.0,0.0002,2]
[401288800,1768108249605,-151.0,0.0002,2]
[401288801,1768108249615,-1046.363777,0.0002,2]
[401288802,1768108249624,-1046.363777,0.0002,2]
[401288803,1768108249633,-1046.363777,0.0002,2]
[401288804,1768108249642,-230.143729,0.0002,2]
[401288805,1768108249651,-151.0,0.0002,2]
[401288806,1768108249660,-230.143729,0.0002,2]
[401288807,1768108249671,-1046.363777,0.0002,2]
[401288808,1768108249680,-151.0,0.0002,2]
[401288809,1768108249690,-230.143729,0.0002,2]
[401288810,1768108249701,-230.143729,0.0002,2]
[401288811,1768108249713,-273.843479,0.0002,2]
[401288812,1768108249726,-273.843479,0.0002,2]
[401288813,1768108249736,-273.843479,0.0002,2]
[401288814,1768108249746,-273.843479,0.0002,2]
[401288815,1768108249755,-151.0,0.0002,2]
[401288816,1768108249766,-1300.0,0.00020005,2]
[401288817,1768108249775,-500.0,0.00020042,2]
[401288818,1768108249784,-1170.8,0.00020152,2]
[401288819,1768108249794,-2500.0,0.00020164,2]
[401288820,1768108249804,-323.84,0.00020206,2]
[401288821,1768108249813,-150.67481279,0.00020222,2]
[401288822,1768108249823,-500.0,0.00020265,2]
[401288823,1768108249832,-300.0,0.00020298,2]
[401288824,1768108249841,-308.3612929,0.00020298,2]
[401288825,1768108249850,-150.0,0.00020298,2]
[401288826,1768108249860,-155216.7311042,0.00020299,2]
[401288827,1768108249870,-16609.5254488,0.00020299,2]
[401288828,1768108249879,-152.0,0.00020388,3]
[401288829,1768108249889,-165.08,0.00020389,2]
[401288830,1768108249899,-4653.52472305,0.0002046,2]
[401288831,1768108249910,-166.66,0.00020472,2]
[401288832,1768108249920,-4781.85268159,0.00020475,2]
[401288833,1768108249929,-361.32,0.0002051,2]
[401288834,1768108249939,-21491.65,0.00020548,2]
[401288835,1768108249948,-192.88,0.00020548,2]
[401288836,1768108249957,-322.6107,0.00020548,2]
[401288837,1768108249966,-500.0,0.00020597,2]
[401288838,1768108249976,-1300.0,0.000206,2]
[401288839,1768108249986,-1000.0,0.000206,2]
[401288840,1768108249996,-1300.0,0.00020655,2]
[401288841,1768108250006,-396.42,0.00020669,2]
[401288842,1768108250014,-500.0,0.00020699,2]
[401288843,1768108250024,-22621.73628903,0.000207,2]
[401288844,1768108250033,-151.0,0.000207,2]
[401288845,1768108250043,-154.572812,0.000207,2]
[401288846,1768108250052,-151.0,0.000207,2]
[401288847,1768108250062,-292.387627,0.000207,2]
[401288848,1768108250072,-151.0,0.000207,2]
[401288849,1768108250081,-151.0,0.000207,2]
[401288850,1768108250091,-151.0,0.000207,2]
[401288851,1768108250100,-151.0,0.000207,2]
[401288852,1768108250110,-182.33239,0.000207,2]
[401288853,1768108250120,-151.0,0.000207,2]
[401288854,1768108250130,-151.0,0.000207,2]
[401288855,1768108250139,-151.0,0.000207,2]
[401288856,1768108250149,-576.969259,0.000207,2]
[401288857,1768108250159,-204.12977,0.000207,2]
[401288858,1768108250169,-151.0,0.000207,2]
[401288859,1768108250179,-159.876955,0.000207,2]
[401288860,1768108250189,-151.0,0.000207,2]
[401288861,1768108250199,-208.256188,0.000207,2]
[401288862,1768108250208,-160.253841,0.000207,2]
[401288863,1768108250218,-151.0,0.000207,2]
[401288864,1768108250227,-160.253841,0.000207,2]
[401288865,1768108250248,-160.253841,0.000207,2]
[401288866,1768108250259,-151.0,0.000207,2]
[401288867,1768108250269,-151.0,0.000207,2]
[401288868,1768108250279,-160.253841,0.000207,2]
[401288869,1768108250289,-151.0,0.000207,2]
[401288870,1768108250300,-284.781618,0.000207,2]
[401288871,1768108250310,-151.0,0.000207,2]
[401288872,1768108250320,-206.637307,0.000207,2]
[401288873,1768108250330,-206.637307,0.000207,2]
[401288874,1768108250340,-206.637307,0.000207,2]
[401288875,1768108250351,-206.637307,0.000207,2]
[401288876,1768108250361,-151.0,0.000207,2]
[401288877,1768108250372,-153.191082,0.000207,2]
[401288878,1768108250383,-153.191082,0.000207,2]
[401288879,1768108250393,-153.191082,0.000207,2]
[401288880,1768108250402,-153.191082,0.000207,2]
[401288881,1768108250412,-242.540878,0.000207,2]
[401288882,1768108250422,-151.0,0.000207,2]
[401288883,1768108250432,-151.0,0.000207,2]
[401288884,1768108250442,-151.0,0.000207,2]
[401288885,1768108250452,-242.540878,0.000207,2]
[401288886,1768108250462,-151.0,0.000207,2]